bitfinex-derivatives/quotes_ETHF0:USTF0_20241004
["timestamp","ask_amount","ask_price","bid_price","bid_amount"]
[1728050665227,0.42054,2378.2,2378.0,3.62837]
[1728050665521,0.42056,2378.1,2378.0,3.2078]
[1728050665721,0.4261,2378.4,2377.8,4.05771]
[1728050665722,0.4206,2377.9,2377.8,4.05771]
[1728050666330,0.4206,2377.9,2377.8,0.4293]
[1728050666533,0.42062,2377.8,2377.7,0.42062]
[1728050666731,0.42062,2377.8,2377.4,0.3922]
[1728050666732,0.42067,2377.5,2377.4,0.3922]
[1728050666924,0.4207,2377.3,2377.2,0.42071]
[1728050667125,0.42072,2377.2,2377.1,0.42073]
[1728050667331,0.42072,2377.3,2376.9,0.8037]
[1728050667532,0.42072,2377.3,2377.2,0.42072]
[1728050667727,0.81959831,2377.3,2377.2,0.42072]
[1728050667929,0.39887831,2377.3,2377.2,0.42072]
[1728050668539,0.39887831,2377.3,2376.9,0.8037]
[1728050668732,0.39887831,2377.2,2376.9,0.8037]
[1728050668930,0.42076,2377.0,2376.9,0.3922]
[1728050669128,0.42077,2376.9,2376.8,0.42078]
[1728050669335,0.39887831,2376.9,2376.7,3.2078]
[1728050669533,5.09166,2377.6,2376.8,1.05197]
[1728050669534,3.85481574,2377.5,2376.8,1.05197]
[1728050669847,3.85481574,2377.5,2376.7,7.415]
[1728050669848,2.08818014,2377.4,2376.7,3.2078]
[1728050670045,0.42078,2376.9,2376.8,0.42079]
[1728050670332,1.05183,2377.2,2376.7,3.2078]
[1728050670333,4.25963,2377.2,2376.7,3.2078]
[1728050670535,0.42077,2376.9,2376.8,0.42078]
[1728050670928,0.42075,2377.1,2376.9,0.42076]
[1728050671138,3.2078,2377.2,2377.0,0.42075]
[1728050671340,3.62854,2377.2,2377.0,0.42075]
[1728050671541,3.2078,2377.2,2376.7,3.2078]
[1728050672038,0.42077,2377.0,2376.8,0.42078]
[1728050672235,3.2078,2377.2,2376.7,3.2078]
[1728050672432,3.2078,2377.2,2377.0,0.42074]
[1728050672634,3.62853,2377.2,2377.1,0.42074]
[1728050672935,3.2078,2377.2,2377.1,0.42074]
[1728050674233,4.81764192,2377.7,2377.3,0.4207]
[1728050674439,0.42068,2377.5,2377.3,0.4207]
[1728050674938,0.42069,2377.4,2376.9,1.05192]
[1728050675137,4.67261,2377.7,2377.3,0.4207]
[1728050675342,4.67261,2377.7,2376.8,1.05199]
[1728050675343,0.42067,2377.5,2376.8,1.05199]
[1728050675637,0.42067,2377.5,2377.3,0.42069]
[1728050676340,4.67261,2377.7,2377.3,0.42069]
[1728050676541,0.42066,2377.6,2377.4,0.42067]
[1728050676730,0.39795287,2377.6,2376.9,1.45341]
[1728050677034,0.42069,2377.4,2377.2,0.42071]
[1728050677240,0.4207,2377.3,2377.2,0.42071]
[1728050677538,0.42072,2377.3,2376.9,0.4015]
[1728050677736,0.42074,2377.2,2377.0,0.42075]
[1728050677935,4.04,2377.3,2376.7,3.2078]
[1728050678137,0.39795287,2377.6,2376.7,3.2078]
[1728050678138,0.81861287,2377.6,2377.0,1.05188]
[1728050678337,0.42067,2377.5,2377.0,1.05188]
[1728050678545,0.42067,2377.5,2377.1,0.4218]
[1728050678935,0.39795287,2377.6,2377.1,0.4218]
[1728050679239,0.42067,2377.5,2377.4,0.42068]
[1728050680142,4.2064,2377.5,2376.6,1.05204]
[1728050680436,4.2064,2377.5,2377.2,0.42071]
[1728050680437,0.42071,2377.3,2377.2,0.42071]
[1728050680827,1.05169,2377.5,2377.1,0.42073]
[1728050680828,0.42072,2377.2,2377.1,0.42073]
[1728050681232,0.42071,2377.3,2377.2,0.42071]
[1728050682042,0.4207,2377.4,2377.3,0.42069]
[1728050682231,0.42067,2377.5,2377.4,0.42068]
[1728050682438,0.42069,2377.4,2377.3,0.42069]
[1728050682941,3.62849,2377.4,2377.3,0.42069]
[1728050683142,0.42073,2377.2,2377.1,0.42073]
[1728050683335,0.42075,2377.1,2377.0,0.42075]
[1728050683639,3.6285,2377.4,2377.3,0.4207]
[1728050683838,3.6285,2377.4,2376.9,1.05193]
[1728050683839,3.2078,2377.4,2376.9,1.05193]
[1728050684047,1.05169,2377.5,2376.8,0.3976]
[1728050684048,0.42067,2377.5,2377.4,0.42067]
[1728050684237,0.42068,2377.5,2377.4,0.42067]
[1728050684438,0.42069,2377.4,2377.3,0.42068]
[1728050684636,0.42069,2377.4,2377.1,0.3985]
[1728050684637,0.81861287,2377.6,2377.5,0.42067]
[1728050684944,0.42068,2377.5,2377.4,0.42068]
[1728050685146,0.42068,2377.5,2377.4,0.42067]
[1728050685842,0.4207,2377.4,2377.3,0.4207]
[1728050686041,0.42068,2377.5,2377.4,0.42067]
[1728050686238,4.67261,2377.7,2377.1,0.3985]
[1728050686239,3.621,2377.7,2377.1,0.3985]
[1728050686449,0.4207,2377.4,2377.3,0.42068]
[1728050688241,0.42072,2377.3,2377.2,0.42071]
[1728050688445,0.42073,2377.2,2377.1,0.42072]
[1728050688647,4.25956,2377.4,2376.8,0.3976]
[1728050688947,0.42075,2377.1,2377.0,0.42074]
[1728050689152,0.42077,2377.0,2376.9,0.42076]
[1728050689860,0.42077,2376.9,2376.8,0.81838]
[1728050690062,4.04,2377.0,2375.8,3.4168]
[1728050690344,3.2078,2376.4,2376.2,0.42089]
[1728050690553,3.62867,2376.4,2376.3,0.42088]
[1728050690942,3.2078,2376.4,2376.3,0.42088]
[1728050691349,3.62867,2376.4,2376.3,0.42088]
[1728050691850,3.2078,2376.4,2376.3,0.42088]
[1728050692552,0.42092,2376.1,2376.0,0.42092]
[1728050692751,0.42089,2376.3,2376.2,0.42089]
[1728050693253,0.42091,2376.2,2376.1,0.42091]
[1728050693449,4.25997,2376.4,2376.2,0.42089]
[1728050693450,0.4209,2376.3,2376.2,0.42089]
[1728050694851,0.42091,2376.2,2376.1,0.4209]
[1728050695355,0.42094,2376.1,2376.0,0.42092]
[1728050695546,0.42091,2376.2,2376.1,0.4209]
[1728050695855,0.42091,2376.2,2375.8,0.4113]
[1728050695856,0.42093,2376.1,2376.0,0.42092]
[1728050696755,0.42095,2376.0,2375.9,0.42094]
[1728050697259,0.42093,2376.1,2376.0,0.42092]
[1728050698154,3.2078,2376.4,2376.0,4.2088]
[1728050698453,3.2078,2376.4,2376.3,0.42088]
[1728050700052,3.2078,2376.4,2376.3,4.62888]
[1728050700253,4.121,2376.7,2376.6,0.42083]
[1728050700758,0.4221,2377.0,2376.4,1.86925]
[1728050700958,0.4208,2376.8,2376.7,0.4208]
[1728050701649,0.84286,2377.0,2376.9,0.42077]
[1728050701849,3.2078,2377.1,2376.6,1.05208]
[1728050702054,0.4208,2376.8,2376.7,0.42079]
[1728050702352,0.4208,2376.8,2376.4,1.86924]
[1728050702353,0.42084,2376.6,2376.5,0.42084]
[1728050702561,0.42084,2376.5,2376.4,0.3896]
[1728050702748,0.42084,2376.5,2376.4,0.81046]
[1728050703147,0.42084,2376.5,2376.4,0.81044]
[1728050703356,0.42084,2376.5,2376.4,0.3896]
[1728050703763,0.42084,2376.5,2376.4,0.81046]
[1728050703948,1.47714,2376.7,2376.4,0.3896]
[1728050704160,0.42083,2376.6,2376.5,0.42083]
[1728050704657,11.3688,2377.1,2376.4,0.3896]
[1728050704865,4.04936,2377.1,2377.0,0.42076]
[1728050705059,0.42078,2377.0,2376.9,0.42076]
[1728050705261,0.42078,2377.0,2376.4,3.5974]
[1728050705262,0.42084,2376.5,2376.4,0.81045]
[1728050705556,0.42084,2376.5,2376.4,0.3896]
[1728050705758,4.04,2376.7,2376.4,0.3896]
[1728050705962,0.42084,2376.5,2376.4,0.81045]
[1728050706161,4.2598,2376.8,2376.5,0.42084]
[1728050706162,0.42084,2376.6,2376.5,0.42084]
[1728050706564,0.42084,2376.5,2376.4,0.3896]
[1728050706858,1.05206,2376.7,2376.4,0.3896]
[1728050706859,1.05203,2376.7,2376.4,0.3896]
[1728050707048,1.05203,2376.7,2376.5,0.42083]
[1728050707254,0.42082,2376.7,2376.6,0.42081]
[1728050707459,0.8139904,2376.7,2376.6,0.42081]
[1728050707661,1.0519,2377.0,2376.8,0.42078]
[1728050707862,0.39318962,2376.9,2376.8,0.42079]
[1728050708160,0.39318962,2376.9,2376.6,1.05207]
[1728050708161,4.04935,2377.1,2377.0,0.42076]
[1728050708359,0.42084,2376.6,2376.5,0.42083]
[1728050708660,0.42084,2376.5,2376.4,0.81045]
[1728050708964,1.05204,2376.7,2376.4,0.3896]
[1728050709262,0.42084,2376.5,2376.4,0.81045]
[1728050709457,0.37534645,2376.5,2376.4,0.81046]
[1728050709760,0.9765044,2376.7,2376.4,0.3896]
[1728050710063,0.42084,2376.5,2376.4,0.3896]
[1728050710251,0.37534645,2376.5,2376.4,0.81046]
[1728050710455,0.37534645,2376.5,2376.4,0.3896]
[1728050710653,0.37534645,2376.5,2376.4,0.81045]
[1728050710859,0.37576213,2376.7,2376.6,0.42083]
[1728050711158,0.37576213,2376.7,2376.4,0.3896]
[1728050711159,0.97699465,2376.7,2376.4,0.3896]
[1728050711353,0.37600042,2376.6,2376.4,0.3896]
[1728050711666,0.42077,2377.0,2376.9,0.42077]
[1728050711862,1.3984095,2377.0,2376.9,0.42077]
[1728050712056,1.3983995,2377.0,2376.9,0.42077]
[1728050712256,0.42078,2376.9,2376.8,0.42079]
[1728050712558,1.3984095,2376.9,2376.8,0.42079]
[1728050712753,0.9776395,2376.9,2376.6,0.3948]
[1728050712957,0.9776395,2376.9,2376.4,0.3896]
[1728050712958,0.42084,2376.5,2376.4,0.81046]
[1728050713163,0.79685519,2376.5,2376.4,0.3896]
[1728050713463,0.42088,2376.3,2376.2,3.2078]
[1728050714165,0.42088,2376.3,2376.2,3.6287]
[1728050714367,0.42088,2376.3,2376.2,3.2078]
[1728050714558,3.2078,2376.4,2376.0,0.4295]
[1728050714759,0.42091,2376.2,2376.0,0.85042]
[1728050715063,0.42091,2376.2,2376.0,0.4295]
[1728050715263,0.42091,2376.2,2376.1,0.42092]
[1728050715465,0.42091,2376.2,2376.0,0.4295]
[1728050715657,2.44962402,2376.5,2376.0,0.4295]
[1728050715851,1.39746402,2376.5,2376.4,0.42086]
[1728050716061,0.37621693,2376.5,2376.4,0.42086]
[1728050716360,3.80431205,2377.3,2376.4,0.42086]
[1728050716361,0.4136,2377.3,2376.4,13.4158]
[1728050716565,0.4136,2377.3,2376.7,3.2078]
[1728050716764,0.4136,2377.3,2376.9,0.42076]
[1728050716765,0.42074,2377.1,2376.9,0.42076]
[1728050717060,7.2478,2377.4,2377.0,0.42074]
[1728050717357,7.2478,2377.4,2377.0,0.42075]
[1728050717358,3.2078,2377.4,2377.0,0.42075]
[1728050717560,3.6285,2377.4,2376.9,0.42077]
[1728050717760,4.25954,2377.4,2376.9,0.42076]
[1728050717964,0.42071,2377.3,2376.8,0.3917]
[1728050718154,3.2078,2377.4,2376.9,1.05194]
[1728050718355,0.4136,2377.6,2376.8,0.3917]
[1728050718566,0.42071,2377.3,2377.1,0.42072]
[1728050718863,4.25949,2377.5,2376.8,0.3917]
[1728050719060,3.62848,2377.5,2377.3,0.4207]
[1728050719254,3.2078,2377.5,2376.9,1.05194]
[1728050719462,0.4136,2377.6,2377.1,1.05185]
[1728050719666,0.4206,2377.9,2377.1,1.05185]
[1728050719863,0.4206,2377.9,2377.7,0.42063]
[1728050720063,3.603,2378.1,2377.7,0.42063]
[1728050720255,3.603,2378.1,2377.3,1.05177]
[1728050720462,0.42061,2377.9,2377.6,0.42064]
[1728050720661,0.42064,2377.7,2377.1,1.05185]
[1728050720854,0.42064,2377.7,2377.5,0.42067]
[1728050721055,0.42064,2377.7,2377.0,3.6316]
[1728050721056,0.42065,2377.6,2377.0,3.6316]
[1728050721260,4.25934,2377.8,2377.2,0.42071]
[1728050721477,0.42068,2377.5,2377.3,0.4207]
[1728050721657,3.2078,2377.8,2377.5,0.42066]
[1728050721856,3.62843,2377.8,2377.2,1.0518]
[1728050722059,3.2078,2377.8,2377.1,3.2078]
[1728050722365,0.42068,2377.5,2377.3,0.4207]
[1728050722552,0.4207,2377.3,2377.2,0.42072]
[1728050722757,0.4207,2377.3,2377.1,3.2078]
[1728050722758,0.4207,2377.3,2377.1,0.42073]
[1728050723255,0.42073,2377.2,2377.0,0.4238]
[1728050723557,1.05172,2377.4,2376.8,0.8215]
[1728050723762,1.05172,2377.4,2377.1,0.42073]
[1728050723959,0.42072,2377.2,2377.1,0.42073]
[1728050724458,0.42072,2377.2,2377.0,0.42074]
[1728050724767,3.6186,2377.5,2377.3,0.42069]
[1728050724768,4.03928,2377.5,2377.3,0.42069]
[1728050724960,3.2078,2377.5,2377.4,0.42069]
[1728050725159,3.62848,2377.5,2377.3,0.42069]
[1728050725458,3.2078,2377.5,2377.4,0.42069]
[1728050725660,1.45266,2377.8,2377.2,5.2582]
[1728050725661,4.02953,2377.8,2377.2,5.2582]
[1728050725964,0.42061,2377.9,2377.8,0.42061]
[1728050726168,1.05146,2378.0,2377.3,4.25956]
[1728050726464,7.05327,2378.2,2377.3,4.25956]
[1728050726668,0.42064,2377.7,2377.3,1.05176]
[1728050726864,0.4206,2377.9,2377.8,0.42061]
[1728050727065,0.4011,2378.2,2377.4,1.05172]
[1728050727270,0.42058,2378.1,2377.9,0.42059]
[1728050727468,0.42058,2378.1,2377.6,1.05161]
[1728050727469,0.4011,2378.2,2378.1,0.42056]
[1728050727771,11.3688,2378.6,2378.4,0.42051]
[1728050727772,3.2078,2378.6,2378.4,0.42051]
[1728050728070,0.4131,2378.8,2378.1,1.0514]
[1728050728265,1.05115,2378.7,2378.2,0.84654]
[1728050728458,0.42052,2378.4,2378.2,0.84654]
[1728050728659,4.4531,2378.8,2378.2,0.426]
[1728050728660,0.4131,2378.8,2378.2,0.426]
[1728050728865,7.2478,2378.7,2378.2,0.84653]
[1728050729069,0.42052,2378.4,2378.3,0.42052]
[1728050729267,0.42052,2378.4,2378.2,0.84653]
[1728050730071,7.2478,2378.7,2378.2,4.6308]
[1728050730072,3.2078,2378.7,2378.2,4.6308]
[1728050730269,3.62826,2378.7,2378.6,0.42047]
[1728050730470,0.42049,2378.5,2378.4,0.4205]
[1728050730767,3.2078,2378.7,2378.2,0.8349]
[1728050730958,0.4131,2378.8,2378.7,0.42046]
[1728050731162,0.4131,2378.8,2378.6,0.42046]
[1728050731359,0.4205,2378.5,2378.4,0.4205]
[1728050731562,1.46421,2378.8,2378.4,0.4205]
[1728050731763,0.4131,2378.8,2378.3,1.05132]
[1728050731961,0.4131,2378.8,2378.2,4.0427]
[1728050731962,0.42047,2378.7,2378.5,0.42048]
[1728050732166,3.62823,2378.9,2378.8,0.42044]
[1728050732374,0.42046,2378.7,2378.6,0.42047]
[1728050732875,0.42045,2378.8,2378.7,0.42045]
[1728050733064,0.42046,2378.7,2378.6,0.42046]
[1728050733259,0.42051,2378.4,2378.2,0.426]
[1728050733768,0.42049,2378.5,2378.4,0.4205]
[1728050733965,0.42049,2378.6,2378.3,0.42053]
[1728050734168,0.42049,2378.5,2378.2,0.426]
[1728050734471,3.2078,2378.9,2378.2,0.426]
[1728050734472,0.42044,2378.9,2378.7,0.42045]
[1728050734667,0.42044,2378.8,2378.7,0.42045]
[1728050734973,1.45233,2379.0,2378.7,0.42045]
[1728050734974,0.42043,2378.9,2378.7,0.42045]
[1728050735375,0.42043,2378.9,2378.3,0.3987]
[1728050735376,0.42046,2378.7,2378.6,0.42047]
[1728050735563,3.2078,2378.9,2378.2,0.426]
[1728050735767,3.2078,2378.9,2378.3,0.42052]
[1728050735768,1.47154,2378.8,2378.3,0.42052]
[1728050735964,1.05117,2378.7,2378.2,0.426]
[1728050736164,1.05117,2378.7,2378.4,0.4205]
[1728050736165,0.4205,2378.5,2378.4,0.4205]
[1728050736360,1.05117,2378.7,2378.2,0.426]
[1728050736666,1.05117,2378.7,2378.2,0.84653]
[1728050736667,0.42053,2378.3,2378.2,0.84653]
[1728050736870,0.42057,2378.1,2377.9,0.3987]
[1728050737160,0.4206,2377.9,2377.8,0.3966]
[1728050737374,0.4206,2377.9,2377.5,1.05167]
[1728050737375,0.42066,2377.6,2377.5,0.42066]
[1728050737569,0.82002,2377.8,2377.7,0.42063]
[1728050737874,11.3688,2378.2,2377.4,1.05172]
[1728050738174,0.42061,2377.8,2377.7,0.42062]
[1728050738470,0.42061,2377.8,2377.4,1.05172]
[1728050738471,0.42067,2377.5,2377.4,0.42068]
[1728050738864,0.42067,2377.5,2377.3,0.3966]
[1728050739171,0.42067,2377.5,2377.3,0.81729]
[1728050739373,3.2078,2377.9,2377.3,0.3966]
[1728050739578,3.2078,2377.6,2377.1,0.42073]
[1728050739870,0.42069,2377.4,2377.3,0.4207]
[1728050740076,0.42069,2377.4,2377.2,0.42071]
[1728050740772,0.4253,2377.5,2376.9,1.46383]
[1728050740978,0.4253,2377.5,2377.4,0.42069]
[1728050741178,3.6331,2378.0,2377.5,0.42067]
[1728050741475,3.6331,2378.0,2377.7,0.42063]
[1728050741476,0.42061,2377.9,2377.7,0.42063]
[1728050741871,0.84589,2378.0,2377.8,0.42061]
[1728050742077,0.4253,2378.0,2377.4,1.46561]
[1728050742380,0.42061,2377.9,2377.7,0.42062]
[1728050742580,0.42061,2377.8,2377.7,0.42062]
[1728050742775,0.84589,2378.0,2377.8,0.42061]
[1728050743076,0.4253,2378.0,2377.5,1.46056]
[1728050743284,0.42061,2377.9,2377.7,0.42063]
[1728050743572,0.4253,2378.0,2377.9,0.4206]
[1728050743769,3.2078,2378.3,2377.5,1.46057]
[1728050743983,0.42052,2378.4,2378.2,0.42054]
[1728050744275,4.4007,2379.1,2378.3,7.4126]
[1728050744575,0.42045,2378.8,2378.6,0.42047]
[1728050745177,1.45141,2379.0,2378.7,0.42045]
[1728050745379,0.42044,2378.8,2378.7,0.42045]
[1728050745572,0.42044,2378.8,2378.6,0.42046]
[1728050745774,0.42044,2378.8,2378.3,4.2591]
[1728050745981,1.45141,2379.0,2378.7,0.42046]
[1728050746174,0.42043,2378.9,2378.3,4.2591]
[1728050746371,0.42045,2378.8,2378.6,0.42046]
[1728050746572,0.42043,2378.9,2378.4,1.05128]
[1728050746876,3.62825,2378.8,2378.6,0.42046]
[1728050747283,0.4004,2379.0,2378.1,1.85509]
[1728050747579,0.42048,2378.6,2378.1,1.85509]
[1728050747778,1.05115,2378.7,2378.1,0.8037]
[1728050747982,0.42047,2378.6,2378.4,0.4205]
[1728050748281,7.2478,2378.9,2378.2,0.42054]
[1728050748469,0.42044,2378.8,2378.3,0.42053]
[1728050748674,0.42045,2378.8,2378.7,0.42045]
[1728050749175,0.82081,2379.0,2378.3,1.47185]
[1728050749385,0.42042,2378.9,2378.4,1.05125]
[1728050749678,0.42042,2378.9,2378.5,0.42049]
[1728050749874,0.4205,2378.5,2378.3,0.42052]
[1728050750076,0.42047,2378.7,2378.2,0.3918]
[1728050750378,3.2078,2378.7,2378.3,0.42052]
[1728050750569,3.2078,2378.7,2378.2,0.3918]
[1728050750570,0.4205,2378.5,2378.2,0.3918]
[1728050750774,3.2078,2378.7,2378.2,0.3918]
[1728050751080,0.4205,2378.5,2378.4,0.4205]
[1728050751276,0.42049,2378.6,2378.4,0.4205]
[1728050751503,0.42049,2378.5,2378.4,0.4205]
[1728050751776,4.25896,2378.7,2378.4,0.4205]
[1728050751969,0.42049,2378.6,2378.4,0.4205]
[1728050752577,4.25896,2378.7,2378.4,0.4205]
[1728050752776,0.42049,2378.5,2378.3,0.42052]
[1728050753293,1.0512,2378.6,2378.1,0.3948]
[1728050753579,0.4298,2378.4,2377.9,3.2078]
[1728050753776,0.42053,2378.3,2377.9,3.2078]
[1728050753971,3.6376,2378.4,2377.9,3.2078]
[1728050754170,0.85032,2378.4,2378.2,0.42054]
[1728050754376,0.42053,2378.3,2378.2,0.42054]
[1728050754576,0.42053,2378.3,2377.9,3.2078]
[1728050754872,0.4298,2378.4,2378.1,0.42055]
[1728050755073,0.4298,2378.4,2378.2,0.42054]
[1728050755283,0.4298,2378.4,2377.9,3.2078]
[1728050755583,3.2078,2378.7,2378.0,1.05146]
[1728050755782,3.2078,2378.7,2378.6,0.42047]
[1728050756080,0.42044,2378.8,2378.7,0.42046]
[1728050756283,0.402,2378.9,2378.2,3.618]
[1728050756487,3.62827,2378.7,2378.5,0.42048]
[1728050756786,0.42047,2378.7,2378.6,0.42047]
[1728050756988,1.45307,2378.9,2378.7,0.42046]
[1728050756989,0.42044,2378.8,2378.7,0.42046]
[1728050757485,0.402,2378.9,2378.8,0.42044]
[1728050757875,0.42045,2378.8,2378.4,0.4215]
[1728050758384,0.42046,2378.7,2378.4,0.4215]
[1728050758684,0.42048,2378.6,2378.4,0.4215]
[1728050759183,1.0511,2378.8,2378.4,0.4215]
[1728050759184,0.42047,2378.7,2378.4,0.4215]
[1728050759381,3.6098,2378.9,2378.4,0.4215]
[1728050759584,0.42044,2378.8,2378.7,0.42045]
[1728050759977,3.6098,2378.9,2378.8,0.42044]
[1728050760175,3.2078,2379.3,2378.6,1.05118]
[1728050760377,3.6335,2379.6,2378.5,3.2078]
[1728050760785,0.42045,2378.8,2378.7,0.42045]
[1728050760989,0.42049,2378.5,2378.4,0.842]
[1728050761287,7.2478,2379.2,2378.9,0.4204]
[1728050761288,0.4204,2379.1,2378.9,0.4204]
[1728050761492,0.412,2379.3,2378.6,1.05118]
[1728050761688,0.412,2379.3,2378.8,1.05109]
[1728050761890,0.412,2379.3,2378.9,1.05105]
[1728050762193,0.83235,2379.3,2379.2,0.42037]
[1728050762680,0.83235,2379.3,2378.9,0.42041]
[1728050762681,0.42041,2379.0,2378.9,0.42041]
[1728050762876,0.42038,2379.2,2378.7,1.44543]
[1728050763083,0.412,2379.3,2378.8,0.42042]
[1728050763275,0.42044,2378.8,2378.7,0.42045]
[1728050763686,0.42044,2378.8,2378.4,3.6293]
[1728050763987,1.05106,2378.9,2378.4,3.6293]
[1728050764194,0.42048,2378.6,2378.5,0.42048]
[1728050764488,0.42053,2378.3,2378.2,0.42054]
[1728050764690,1.05124,2378.5,2377.8,0.8047]
[1728050765086,1.05124,2378.5,2378.1,0.42056]
[1728050765087,0.42055,2378.2,2378.1,0.42056]
[1728050765389,0.42056,2378.2,2378.0,0.42057]
[1728050765592,0.42059,2378.0,2377.8,1.22531]
[1728050765789,0.42057,2378.1,2377.8,0.8047]
[1728050765998,0.4122,2378.3,2377.9,0.4206]
[1728050766187,0.83274,2378.3,2377.8,0.8047]
[1728050766381,0.42054,2378.2,2378.0,0.42056]
[1728050766887,8.38,2378.6,2378.0,0.42056]
[1728050766888,3.2078,2378.9,2378.8,0.42044]
[1728050767189,0.42044,2378.8,2378.6,0.42046]
[1728050767393,0.42044,2378.8,2378.4,3.2078]
[1728050767394,0.42043,2378.9,2378.7,0.42045]
[1728050767589,0.42044,2378.8,2378.7,0.42045]
[1728050767794,3.2078,2379.0,2378.5,0.4205]
[1728050767990,0.42045,2378.8,2378.5,0.4205]
[1728050768195,0.42044,2378.9,2378.7,0.42046]
[1728050768689,0.42047,2378.6,2378.5,0.84099]
[1728050768892,1.05112,2378.8,2378.5,0.4205]
[1728050769194,0.42046,2378.7,2378.6,0.42047]
[1728050769390,0.42047,2378.6,2378.5,0.84099]
[1728050769596,4.25882,2379.0,2378.5,0.4205]
[1728050770095,0.42047,2378.6,2378.5,0.84098]
[1728050770891,0.42046,2378.7,2378.6,0.42046]
[1728050771091,3.2078,2378.7,2378.6,0.42046]
[1728050771400,3.2078,2379.0,2378.5,1.47173]
[1728050771693,0.42039,2379.1,2379.0,0.4204]
[1728050771888,3.2078,2379.3,2378.5,0.4205]
[1728050772092,0.42037,2379.2,2379.1,0.42038]
[1728050772394,7.3008389,2379.6,2379.5,0.42031]
[1728050772395,3.2078,2379.6,2379.5,0.42031]
[1728050773292,0.42028,2379.7,2379.3,0.4228]
[1728050773486,3.62811,2379.6,2379.3,0.4228]
[1728050773698,3.62811,2379.6,2379.5,0.42031]
[1728050774014,0.4119,2380.0,2379.3,0.4228]
[1728050774015,0.4203,2379.7,2379.3,0.4228]
[1728050774191,1.05056,2380.1,2379.3,0.4228]
[1728050774192,3.6810089,2380.4,2379.9,0.42024]
[1728050774497,0.42017,2380.4,2379.9,0.42024]
[1728050774703,0.42017,2380.4,2380.0,0.826]
[1728050774704,0.42016,2380.4,2380.0,0.826]
[1728050774903,0.42016,2380.4,2380.2,0.42018]
[1728050775403,3.6352,2380.5,2380.0,0.826]
[1728050775696,0.42018,2380.3,2380.1,0.4202]
[1728050775891,0.42017,2380.4,2380.2,0.42018]
[1728050776096,0.4274,2380.5,2380.0,0.826]
[1728050776305,0.84755,2380.5,2380.2,0.42018]
[1728050776594,0.4274,2380.5,2380.3,0.42016]
[1728050776799,0.84754,2380.5,2380.3,0.42016]
[1728050777100,0.84754,2380.5,2380.2,0.42018]
[1728050777287,0.4274,2380.5,2380.3,0.42016]
[1728050777492,0.4274,2380.5,2380.0,0.826]
[1728050777698,0.42017,2380.4,2380.1,0.42021]
[1728050777902,0.42017,2380.4,2380.2,0.42019]
[1728050778103,0.42016,2380.4,2380.2,0.42019]
[1728050778996,0.42016,2380.4,2380.1,0.4202]
[1728050779201,0.42016,2380.4,2380.2,0.42018]
[1728050779507,0.4274,2380.5,2379.6,3.2078]
[1728050779701,3.2078,2380.2,2379.6,3.2078]
[1728050779898,3.2078,2380.2,2379.3,0.3906]
[1728050779899,4.04,2380.0,2379.3,0.3906]
[1728050780101,1.44354,2379.9,2379.3,0.3906]
[1728050780400,0.4203,2379.6,2379.3,0.3906]
[1728050780599,0.42033,2379.5,2379.3,0.81094]
[1728050780798,1.05071,2379.7,2379.3,0.3906]
[1728050780799,0.42033,2379.4,2379.3,0.3906]
[1728050780991,0.42032,2379.5,2379.3,0.81095]
[1728050781512,0.4203,2379.6,2379.3,0.3906]
[1728050781701,0.4203,2379.6,2379.4,0.42033]
[1728050781895,0.42032,2379.5,2379.3,0.81094]
[1728050782096,0.42031,2379.6,2379.4,0.42033]
[1728050782405,3.2078,2379.8,2379.3,0.3906]
[1728050782594,0.42031,2379.6,2379.4,0.42033]
[1728050782799,4.25848,2379.8,2379.4,0.42033]
[1728050782997,0.42031,2379.5,2379.4,0.42033]
[1728050783201,0.42031,2379.5,2379.3,0.81094]
[1728050783400,0.42031,2379.5,2379.4,0.42033]
[1728050783601,0.42031,2379.5,2379.3,0.81094]
[1728050783799,4.25848,2379.8,2379.3,0.3906]
[1728050784000,4.25848,2379.8,2379.4,0.42033]
[1728050784308,0.42033,2379.5,2379.3,0.81095]
[1728050784602,3.2078,2379.5,2379.0,0.4018]
[1728050784803,3.2078,2379.5,2378.9,0.42041]
[1728050784804,0.42039,2379.1,2378.9,0.42041]
[1728050785002,4.4659,2379.4,2378.6,0.3912]
[1728050785308,0.4204,2379.1,2378.9,0.42041]
[1728050785608,0.4204,2379.1,2378.9,0.42042]
[1728050785910,0.42037,2379.2,2379.0,0.42039]
[1728050786205,0.42039,2379.1,2378.9,0.42041]
[1728050786405,0.4259,2379.4,2379.2,0.42035]
[1728050786705,0.84624,2379.4,2379.2,0.42035]
[1728050787099,0.84624,2379.4,2379.2,0.42036]
[1728050787301,3.2078,2379.5,2378.8,1.05106]
[1728050787302,3.62812,2379.5,2379.3,0.42034]
[1728050787603,3.2078,2379.5,2379.0,1.051]
[1728050787808,3.2078,2379.5,2379.4,0.42033]
[1728050788004,3.62813,2379.5,2379.3,0.42035]
[1728050788517,1.05071,2379.7,2379.1,0.3922]
[1728050788699,0.42032,2379.5,2379.3,0.42034]
[1728050788899,0.42034,2379.4,2379.2,0.42035]
[1728050789099,0.42032,2379.5,2379.3,0.42034]
[1728050789494,3.62812,2379.5,2379.3,0.42034]
[1728050789699,0.42032,2379.5,2379.3,0.42034]
[1728050790106,0.3945,2379.8,2379.7,0.42028]
[1728050790308,4.61841,2380.2,2379.4,5.25324]